bitfinex/quotes_BTCUSD_20260101
["timestamp","ask_amount","ask_price","bid_price","bid_amount"]
[1767231619233,0.51373566,87911.0,87895.0,0.25881618]
[1767231619542,0.24215803,87910.0,87894.0,0.0001532]
[1767231625149,0.24215803,87910.0,87891.0,0.0114]
[1767231625150,0.24215803,87910.0,87891.0,0.25861332]
[1767231625758,0.75589369,87910.0,87891.0,0.25861332]
[1767231626299,0.76772765,87910.0,87891.0,0.25861332]
[1767231626656,0.75589369,87910.0,87891.0,0.25861332]
[1767231627061,0.51373566,87910.0,87891.0,0.25861332]
[1767231628103,0.0001164,87915.0,87891.0,0.25861332]
[1767231628303,0.51373566,87910.0,87891.0,0.25861332]
[1767231629302,0.0001164,87915.0,87891.0,0.25861332]
[1767231629528,0.51373566,87910.0,87891.0,0.25861332]
[1767231630982,0.51373566,87910.0,87899.0,0.13638068]
[1767231631183,0.02807258,87914.0,87900.0,0.24721332]
[1767231632098,0.0001164,87915.0,87900.0,0.24721332]
[1767231632669,0.51373566,87910.0,87900.0,0.24721332]
[1767231633164,0.0001164,87915.0,87900.0,0.24721332]
[1767231633551,0.51373566,87910.0,87900.0,0.24721332]
[1767231634263,0.0001164,87915.0,87900.0,0.24721332]
[1767231634475,0.51373566,87910.0,87900.0,0.24721332]
[1767231636676,0.0001164,87915.0,87900.0,0.24721332]
[1767231637122,0.25162436,87915.0,87900.0,0.24721332]
[1767231637827,0.29269871,87915.0,87900.0,0.24721332]
[1767231648365,0.29269871,87915.0,87899.0,0.13638068]
[1767231655274,0.29269871,87915.0,87897.0,0.0114]
[1767231657420,0.24753995,87909.0,87897.0,0.0114]
[1767231658499,0.24753995,87909.0,87896.0,0.0114]
[1767231659309,0.24753995,87909.0,87887.0,0.22948355]
[1767231659530,0.24753995,87909.0,87888.0,0.24088355]
[1767231660491,0.24753995,87909.0,87888.0,0.22948355]
[1767231660694,0.24753995,87909.0,87889.0,0.0114]
[1767231661429,0.0001164,87915.0,87890.0,0.22948355]
[1767231661869,0.0001164,87915.0,87891.0,0.22948355]
[1767231662092,0.07727085,87914.0,87891.0,0.22948355]
[1767231662235,0.3248108,87914.0,87891.0,0.22948355]
[1767231663057,0.24753995,87914.0,87891.0,0.22948355]
[1767231670752,0.24753995,87914.0,87893.0,0.22948355]
[1767231671518,0.24749667,87914.0,87893.0,0.22948355]
[1767231674005,0.24745384,87914.0,87892.0,0.0114]
[1767231674152,0.24745384,87914.0,87893.0,0.22948355]
[1767231674881,0.24745384,87914.0,87892.0,0.0114]
[1767231675045,0.24745384,87914.0,87893.0,0.22948355]
[1767231677131,0.0001164,87915.0,87901.0,0.22948355]
[1767231677294,0.0001164,87915.0,87901.0,0.24088355]
[1767231680349,0.24768545,87924.0,87915.0,0.000116]
[1767231680350,0.00585546,87922.0,87915.0,0.000116]
[1767231680511,0.00585546,87922.0,87910.0,0.2228879]
[1767231680512,0.00585546,87922.0,87916.0,0.02230039]
[1767231680688,0.0001455,87924.0,87916.0,5.626e-05]
[1767231681779,0.0001455,87924.0,87916.0,0.21488473]
[1767231688474,0.22601137,87923.0,87916.0,5.626e-05]
[1767231688674,0.22596917,87923.0,87916.0,5.626e-05]
[1767231689444,0.22592573,87923.0,87916.0,5.626e-05]
[1767231690578,0.0001455,87924.0,87916.0,5.626e-05]
[1767231693013,5e-07,87924.0,87916.0,0.21488473]
[1767231694407,5e-07,87924.0,87917.0,0.13638068]
[1767231694606,5e-07,87924.0,87917.0,0.14778068]
[1767231694837,5e-07,87924.0,87918.0,0.03626654]
[1767231712611,0.0002,87932.0,87922.0,0.20825496]
[1767231712811,0.0114,87944.0,87921.0,0.51329801]
[1767231712812,0.00010335,87941.0,87921.0,0.51329801]
[1767231713011,0.00010335,87941.0,87931.0,0.20825496]
[1767231713265,0.00010335,87941.0,87931.0,0.22507231]
[1767231715051,0.00010335,87941.0,87931.0,0.01696235]
[1767231722654,0.20472697,87940.0,87931.0,0.01696235]
[1767231725690,0.20472697,87940.0,87927.0,0.0114]
[1767231726238,0.20472697,87939.0,87927.0,0.0114]
[1767231731603,0.20472697,87939.0,87927.0,0.0112]
[1767231733721,0.20472697,87939.0,87917.0,0.13638068]
[1767231733882,0.20472697,87939.0,87920.0,0.51329801]
[1767231736374,0.20472697,87939.0,87918.0,0.0114]
[1767231736575,0.20472697,87939.0,87920.0,0.51329801]
[1767231739854,0.20472697,87939.0,87918.0,0.0114]
[1767231740079,0.20472697,87939.0,87920.0,0.51329801]
[1767231740479,0.20472697,87939.0,87918.0,0.0114]
[1767231740700,0.20472697,87939.0,87920.0,0.51329801]
[1767231742482,0.20472697,87939.0,87918.0,0.0114]
[1767231742685,0.20472697,87939.0,87920.0,0.51329801]
[1767231745802,0.20472697,87939.0,87918.0,0.0114]
[1767231746110,0.20472697,87939.0,87920.0,0.51329801]
[1767231746238,0.20472697,87939.0,87918.0,0.0114]
[1767231746438,0.20472697,87939.0,87920.0,0.51329801]
[1767231750969,0.20472697,87939.0,87918.0,0.0114]
[1767231751291,0.20472697,87939.0,87920.0,0.51329801]
[1767231754064,0.51329801,87940.0,87921.0,0.2068455]
[1767231754474,0.19243086,87939.0,87921.0,0.2068455]
[1767231754629,0.51329801,87940.0,87921.0,0.2068455]
[1767231755060,0.19243086,87939.0,87921.0,0.2068455]
[1767231755423,0.51329801,87940.0,87921.0,0.2068455]
[1767231756180,0.51329801,87940.0,87923.0,0.2068455]
[1767231758467,0.70572887,87940.0,87923.0,0.2068455]
[1767231760395,0.19243086,87939.0,87923.0,0.2068455]
[1767231762626,0.19243086,87939.0,87924.0,0.0114]
[1767231765978,0.19243086,87939.0,87923.0,0.2068455]
[1767231766157,0.19243086,87939.0,87925.0,0.0114]
[1767231768465,0.19243086,87939.0,87926.0,0.02182455]
[1767231770502,0.51328832,87940.0,87927.0,0.17597997]
[1767231770707,0.51328832,87940.0,87926.0,0.02182455]
[1767231770909,0.18402851,87939.0,87925.0,0.0114]
[1767231771326,0.51328832,87940.0,87926.0,0.17597997]
[1767231771527,0.51328832,87940.0,87925.0,0.0114]
[1767231771751,0.69731683,87940.0,87925.0,0.0114]
[1767231773542,0.18402851,87939.0,87925.0,0.0114]
[1767231773968,0.18402851,87939.0,87926.0,0.02215299]
[1767231776948,0.18402851,87939.0,87925.0,0.0114]
[1767231781679,0.18402851,87939.0,87926.0,0.0114]
[1767231781989,0.00010335,87941.0,87919.0,0.03414991]
[1767231781990,0.51328832,87936.0,87919.0,0.03414991]
[1767231782164,0.51328832,87936.0,87916.0,5.626e-05]
[1767231782165,0.00055,87926.0,87920.0,0.0114]
[1767231782644,0.18402851,87927.0,87920.0,0.0114]
[1767231782814,0.18402851,87927.0,87921.0,0.0114]
[1767231784014,0.18402851,87927.0,87917.0,0.13638068]
[1767231784216,0.18347951,87927.0,87918.0,0.0114]
[1767231788949,0.00010335,87941.0,87918.0,0.0114]
[1767231788950,0.00010335,87941.0,87919.0,0.19417882]
[1767231789164,0.00010335,87941.0,87928.0,0.17597997]
[1767231789365,0.00010335,87941.0,87929.0,0.0114]
[1767231794289,0.18413186,87941.0,87929.0,0.0114]
[1767231812672,0.00010335,87941.0,87929.0,0.0114]
[1767231812899,0.00010335,87941.0,87930.0,0.01826511]
[1767231813730,0.00010335,87941.0,87930.0,0.18951624]
[1767231818391,0.00010335,87941.0,87930.0,0.01826511]
[1767231822448,0.00010335,87941.0,87929.0,0.18265113]
[1767231826590,0.51321956,87940.0,87929.0,0.18265113]
[1767231826790,0.00010335,87941.0,87929.0,0.18265113]
[1767231826995,0.51321956,87940.0,87929.0,0.18265113]
[1767231827682,0.00010335,87941.0,87930.0,0.68447069]
[1767231827951,0.00010335,87941.0,87931.0,0.20628117]
[1767231834383,0.00010335,87941.0,87935.0,0.28631853]
[1767231836173,0.00010335,87941.0,87936.0,0.0114]
[1767231842743,0.10217881,87949.0,87936.0,0.010851]
[1767231864615,0.01068348,87948.0,87936.0,0.010851]
[1767231864818,0.01068386,87947.0,87936.0,0.010851]
[1767231865027,0.10217881,87949.0,87936.0,0.010851]
[1767231865307,0.01068374,87948.0,87936.0,0.010851]
[1767231865507,0.10217881,87949.0,87936.0,0.010851]
[1767231865666,0.01068337,87948.0,87936.0,0.010851]
[1767231865872,0.10217881,87949.0,87936.0,0.010851]
[1767231866075,0.01068337,87948.0,87936.0,0.010851]
[1767231866273,0.10217881,87949.0,87936.0,0.010851]
[1767231866494,0.01068324,87948.0,87936.0,0.010851]
[1767231866710,0.10217881,87949.0,87936.0,0.010851]
[1767231866909,0.01068324,87948.0,87936.0,0.010851]
[1767231867207,0.10217881,87949.0,87936.0,0.010851]
[1767231867411,0.01068315,87948.0,87936.0,0.010851]
[1767231867709,0.10217881,87949.0,87936.0,0.010851]
[1767231867893,0.01068315,87948.0,87936.0,0.010851]
[1767231868207,0.10217881,87949.0,87936.0,0.010851]
[1767231868411,0.01068307,87948.0,87936.0,0.010851]
[1767231868562,0.10217881,87949.0,87936.0,0.010851]
[1767231868762,0.01068307,87948.0,87936.0,0.010851]
[1767231868962,0.10217881,87949.0,87936.0,0.010851]
[1767231869157,0.01068307,87948.0,87936.0,0.010851]
[1767231869385,0.10217881,87949.0,87936.0,0.010851]
[1767231869586,0.01068302,87948.0,87936.0,0.010851]
[1767231869794,0.10217881,87949.0,87936.0,0.010851]
[1767231869970,0.01068302,87948.0,87936.0,0.010851]
[1767231870171,0.10217881,87949.0,87936.0,0.010851]
[1767231870375,0.01068297,87948.0,87936.0,0.010851]
[1767231870585,0.10217881,87949.0,87936.0,0.010851]
[1767231870780,0.01068298,87948.0,87936.0,0.010851]
[1767231870987,0.10217881,87949.0,87936.0,0.010851]
[1767231871205,0.01068298,87948.0,87936.0,0.010851]
[1767231871423,0.10217881,87949.0,87936.0,0.010851]
[1767231871626,0.01068295,87948.0,87936.0,0.010851]
[1767231871829,0.10217881,87949.0,87936.0,0.010851]
[1767231872030,0.01068295,87948.0,87936.0,0.010851]
[1767231872189,0.10217881,87949.0,87936.0,0.010851]
[1767231872388,0.0001455,87950.0,87936.0,0.15754053]
[1767231872710,0.51336506,87950.0,87936.0,0.15754053]
[1767231872908,0.65648096,87950.0,87936.0,0.15754053]
[1767231878255,0.65648096,87950.0,87936.0,0.010851]
[1767231878256,0.1431159,87949.0,87936.0,0.010851]
[1767231880397,0.51336506,87950.0,87937.0,0.28307021]
[1767231882676,0.0001455,87950.0,87937.0,0.28307021]
[1767231882829,0.51336506,87950.0,87937.0,0.28307021]
[1767231885253,0.51336506,87950.0,87937.0,0.14668953]
[1767231888579,0.0001455,87950.0,87937.0,0.14668953]
[1767231890194,0.51328042,87950.0,87937.0,0.14668953]
[1767231892728,0.0001455,87950.0,87937.0,0.14668953]
[1767231892951,0.51328042,87950.0,87937.0,0.14668953]
[1767231893657,0.0001455,87950.0,87937.0,0.14668953]
[1767231893802,0.0001455,87950.0,87938.0,0.01916863]
[1767231901371,0.0001455,87950.0,87937.0,0.14668953]
[1767231901716,0.51328042,87950.0,87936.0,0.010851]
[1767231901891,0.1410754,87949.0,87936.0,0.010851]
[1767231951062,0.1410754,87949.0,87931.0,0.00829571]
[1767231951238,0.0001455,87950.0,87920.0,0.20302669]
[1767231951239,0.00055,87936.0,87921.0,0.13638068]
[1767231951605,0.51316331,87939.0,87921.0,0.13638068]
[1767231951825,0.12620034,87938.0,87921.0,0.13638068]
[1767231952071,0.12620034,87938.0,87919.0,0.03429588]
[1767231952072,0.12620034,87938.0,87922.0,0.13638068]
[1767231952201,0.15289069,87934.0,87922.0,0.13638068]
[1767231952421,0.51316331,87932.0,87922.0,0.13638068]
[1767231953036,0.51316331,87932.0,87919.0,0.0003455]
[1767231953230,0.51316331,87930.0,87920.0,0.13638068]
[1767231954705,0.02669035,87929.0,87920.0,0.13638068]
[1767231957908,0.02614135,87929.0,87920.0,0.16676937]
[1767231960762,0.01287514,87929.0,87920.0,0.16676937]
[1767231961386,0.01287514,87929.0,87920.0,0.13638068]
[1767231961690,0.12620034,87928.0,87920.0,0.13638068]
[1767231962238,0.01287514,87929.0,87920.0,0.13638068]
[1767231969289,0.12620034,87933.0,87920.0,0.13638068]
[1767231970274,0.01287514,87932.0,87920.0,0.13638068]
[1767231970690,0.01287514,87932.0,87921.0,0.03038869]
[1767231970913,0.01287514,87932.0,87920.0,0.13638068]
[1767231971354,0.01287514,87932.0,87920.0,0.64954399]
[1767231974679,0.01287514,87932.0,87921.0,0.12100753]
[1767231983118,0.01287514,87932.0,87921.0,0.13240753]
[1767231983271,0.00715875,87932.0,87921.0,0.0114]
[1767231983491,0.0114,87936.0,87922.0,0.12360774]
[1767231984724,0.0002,87939.0,87922.0,0.12360774]
[1767231995855,0.51316331,87940.0,87922.0,0.12360774]
[1767232004246,0.51316331,87940.0,87921.0,0.0114]
[1767232004402,0.51316331,87940.0,87922.0,0.12360774]
[1767232007857,0.16371765,87941.0,87930.0,0.51316331]
[1767232008158,0.16371765,87941.0,87926.0,0.12360774]
[1767232009883,0.16371765,87941.0,87930.0,0.51316331]
[1767232010086,0.12956801,87941.0,87930.0,0.51316331]
[1767232010507,0.12956801,87941.0,87926.0,0.12360774]
[1767232015629,0.11130019,87949.0,87930.0,0.63214079]
[1767232015874,0.0114,87947.0,87930.0,0.64354079]
[1767232016007,0.0114,87947.0,87930.0,0.13033593]
[1767232016215,0.11130019,87949.0,87938.0,0.13638068]
[1767232016629,0.0001455,87950.0,87938.0,0.13638068]
[1767232017934,0.0001455,87950.0,87938.0,0.25531661]
[1767232019726,0.0001455,87950.0,87939.0,0.11893593]
[1767232019941,0.0001455,87950.0,87940.0,0.14560759]
[1767232023810,0.0001455,87950.0,87940.0,0.14505859]
[1767232023962,0.11144569,87950.0,87940.0,0.02612266]
[1767232024568,0.11144569,87950.0,87938.0,0.13638068]
[1767232040967,0.0001455,87950.0,87938.0,0.13638068]
[1767232041322,0.0001455,87950.0,87938.0,0.25650458]
[1767232041529,0.0342909,87959.0,87950.0,0.000145]
[1767232041530,0.0001455,87959.0,87950.0,0.000145]
[1767232041726,0.0114,87958.0,87950.0,0.000145]
[1767232041930,0.0114,87958.0,87941.0,0.1201239]
[1767232042110,0.0114,87958.0,87943.0,0.1201239]
[1767232042314,0.0114,87958.0,87944.0,0.1315239]
[1767232042565,0.0001455,87959.0,87944.0,0.1315239]
[1767232042770,4.018e-05,87958.0,87944.0,0.1315239]
[1767232045514,1.8e-07,87958.0,87945.0,0.1201239]
[1767232045766,1.8e-07,87958.0,87947.0,0.1201239]
[1767232048096,1.8e-07,87959.0,87958.0,0.1201239]
[1767232048296,0.0001455,87967.0,87959.0,0.12026872]
[1767232048619,0.0001455,87967.0,87960.0,0.02566896]
[1767232048835,0.0001455,87967.0,87960.0,0.14579286]
[1767232052796,0.11348575,87977.0,87960.0,0.14579286]
[1767232052797,0.11260175,87977.0,87960.0,0.14579286]
[1767232053156,0.0114,87974.0,87960.0,0.14579286]
[1767232053295,0.0114,87974.0,87961.0,0.01397734]
[1767232053644,0.11260175,87977.0,87961.0,0.01397734]
[1767232053813,0.0114,87975.0,87961.0,0.13410124]
[1767232065391,0.0114,87974.0,87961.0,0.13410124]
[1767232069304,0.12488575,87974.0,87961.0,0.01379234]
[1767232069533,0.12488575,87974.0,87962.0,0.01303359]
[1767232069913,0.0114,87974.0,87963.0,0.1201239]
[1767232070160,0.0114,87974.0,87963.0,0.1195729]
[1767232070545,0.0114,87974.0,87962.0,0.01303359]
[1767232071067,0.12764436,87974.0,87962.0,0.01303359]
[1767232071265,0.12764436,87974.0,87963.0,0.01746468]
[1767232071619,0.12764436,87974.0,87963.0,0.00893103]
[1767232072746,0.11624436,87972.0,87961.0,0.01379234]
[1767232076389,0.11624436,87970.0,87961.0,0.01379234]
[1767232076540,0.11624436,87970.0,87962.0,0.01616132]
[1767232088439,0.0114,87974.0,87962.0,0.01616132]
[1767232088781,0.12764436,87974.0,87962.0,0.01616132]
[1767232093520,0.0114,87974.0,87962.0,0.01616132]
[1767232093737,0.0114,87974.0,87962.0,0.12947]
[1767232093940,0.11624436,87980.0,87964.0,0.11330868]
[1767232094117,0.0114,87975.0,87964.0,0.11330868]
[1767232097022,0.5128246,87980.0,87964.0,0.11330868]
[1767232097200,0.0114,87979.0,87964.0,0.11330868]
[1767232097402,0.0114,87978.0,87964.0,0.11330868]
[1767232097667,0.5128246,87980.0,87958.0,0.01144018]
[1767232097668,0.0001455,87985.0,87969.0,0.11330868]
[1767232097840,0.0114,87984.0,87978.0,0.11330868]
[1767232099315,0.0114,87984.0,87975.0,0.13638068]
[1767232100067,0.0114,87983.0,87975.0,0.2449291]
[1767232100798,0.0118,87992.0,87984.0,0.10589475]
[1767232100799,0.0118,87988.0,87984.0,0.10589475]
[1767232101354,0.0118,87988.0,87979.0,0.10589475]
[1767232108388,0.0005272,87992.0,87979.0,0.10589475]
[1767232108527,0.01796621,87999.0,87989.0,0.10589475]
[1767232108733,0.01796621,87999.0,87990.0,0.01058948]
[1767232108933,0.5242246,88000.0,87990.0,0.01058948]
[1767232109787,0.52457806,88000.0,87990.0,0.11648423]
[1767232110212,0.01175346,88000.0,87990.0,0.11648423]
[1767232110392,0.01175346,88000.0,87993.0,0.13638068]
[1767232110617,0.01175346,88000.0,87993.0,0.24227543]
[1767232113125,0.01175346,88000.0,87969.0,0.0001521]
[1767232113126,0.11472974,87999.0,87969.0,0.0001521]
[1767232113418,0.10408622,87980.0,87964.0,0.10589475]
[1767232113570,0.5128246,87974.0,87964.0,0.10589475]
[1767232113769,0.5128246,87974.0,87960.0,0.0001521]
[1767232113993,0.5128246,87970.0,87960.0,0.0001521]
[1767232114174,0.5128246,87970.0,87961.0,0.01176469]
[1767232116434,0.5128246,87971.0,87961.0,0.01176469]
[1767232117239,0.10404344,87977.0,87961.0,0.01176469]
[1767232117444,0.5128246,87971.0,87961.0,0.01176469]
[1767232119449,0.5242246,87971.0,87961.0,0.01176469]
[1767232119641,0.5242246,87971.0,87962.0,0.01294115]
[1767232122696,0.10346248,87970.0,87960.0,0.0001521]
[1767232123470,0.5242246,87971.0,87960.0,0.0001521]
[1767232123918,0.0114,87971.0,87960.0,0.0001521]
[1767232124117,0.5128246,87970.0,87960.0,0.0001521]
[1767232125106,0.5122746,87970.0,87960.0,0.0001521]
[1767232125318,0.5122746,87970.0,87961.0,0.01176469]
[1767232125480,0.0114,87971.0,87961.0,0.01176469]
[1767232127308,0.01085,87971.0,87961.0,0.01176469]
[1767232130128,0.01085,87971.0,87961.0,0.11593553]
[1767232132430,0.0114,87975.0,87961.0,0.11593553]
[1767232132755,0.0114,87975.0,87965.0,0.5128246]
[1767232132931,0.0114,87975.0,87963.0,0.10417084]
[1767232135575,0.0116,87979.0,87963.0,0.10417084]
[1767232138204,0.11306224,87979.0,87963.0,0.10417084]
[1767232138404,0.11306224,87979.0,87964.0,0.01159229]
[1767232138991,0.11306224,87979.0,87960.0,0.0001521]
[1767232161191,0.11306224,87979.0,87960.0,0.10088085]
[1767232162369,0.01067613,87978.0,87960.0,0.10088085]
[1767232162597,0.10002953,87977.0,87960.0,0.10088085]
[1767232163704,0.10002953,87977.0,87960.0,0.10092945]
[1767232164070,0.10002953,87977.0,87961.0,0.01126753]
[1767232164696,0.10002953,87977.0,87961.0,0.01146823]
[1767232165428,0.51277292,87971.0,87959.0,0.0002]
[1767232166097,0.09984778,87973.0,87959.0,0.10092875]
[1767232167399,0.0114,87972.0,87959.0,0.10092875]
[1767232185715,0.10826292,87972.0,87956.0,0.0001458]
[1767232185885,0.10826292,87972.0,87956.0,0.10087455]
[1767232186095,0.51277292,87970.0,87957.0,0.13736524]
[1767232186301,0.09655389,87969.0,87957.0,0.12727779]
[1767232196625,0.5130351,87967.0,87956.0,0.0001458]
[1767232199564,0.09655389,87969.0,87956.0,0.0001458]
[1767232216711,0.0114,87972.0,87956.0,0.10657207]
[1767232238956,0.09453206,87972.0,87956.0,0.10657207]
[1767232239996,0.5130351,87970.0,87956.0,0.10657207]
[1767232242411,0.01135857,87969.0,87956.0,0.10657207]
[1767232242814,0.0114,87968.0,87956.0,0.10657207]
[1767232243057,0.0114,87967.0,87956.0,0.10657207]
[1767232243261,0.5130351,87970.0,87956.0,0.10657207]
[1767232243414,0.0114,87969.0,87957.0,0.09458564]
[1767232244115,0.0113563,87969.0,87957.0,0.09458564]
[1767232245177,0.01131504,87969.0,87957.0,0.09458564]
[1767232245926,0.01127368,87969.0,87957.0,0.09458564]
[1767232246652,0.01123031,87969.0,87957.0,0.09458564]
[1767232255636,0.01118671,87969.0,87957.0,0.09458564]
[1767232256636,0.01114339,87969.0,87957.0,0.09458564]
[1767232257965,0.01110133,87969.0,87957.0,0.09458564]
[1767232258599,0.01105757,87969.0,87957.0,0.09458564]
[1767232267483,0.08133442,87978.0,87957.0,0.09077854]
[1767232267733,0.0114,87977.0,87960.0,0.09077854]
[1767232276356,0.01067537,87976.0,87960.0,0.08675654]
[1767232276704,0.07058876,87977.0,87960.0,0.08675654]
[1767232276908,0.01067588,87976.0,87960.0,0.08675654]
[1767232277110,0.07058876,87977.0,87961.0,0.00869023]
[1767232277312,0.01067577,87976.0,87961.0,0.00869023]
[1767232277460,0.07058876,87977.0,87961.0,0.00869023]
[1767232277661,0.01067579,87976.0,87961.0,0.00869023]
[1767232277984,0.07058876,87977.0,87961.0,0.00869023]
[1767232278188,0.01067579,87976.0,87961.0,0.00814023]
[1767232278501,0.07058876,87977.0,87961.0,0.00814023]
[1767232278663,0.01067572,87976.0,87961.0,0.00814023]
[1767232278867,0.07058876,87977.0,87961.0,0.00814023]
[1767232279069,0.01067572,87976.0,87961.0,0.00814023]
[1767232279264,0.07058876,87977.0,87961.0,0.00814023]
[1767232279496,0.01067593,87976.0,87961.0,0.00814023]
[1767232279834,0.07058876,87977.0,87961.0,0.09891877]
[1767232280063,0.01067592,87976.0,87962.0,0.00990646]
[1767232280265,0.07058876,87977.0,87962.0,0.00990646]
[1767232280489,0.01067617,87976.0,87962.0,0.00990646]
[1767232280748,0.07058876,87977.0,87962.0,0.00990646]
[1767232280959,0.01067617,87976.0,87962.0,0.00990646]
[1767232281161,0.07058876,87977.0,87963.0,0.01008308]
[1767232281356,0.01067611,87976.0,87963.0,0.01008308]
[1767232281587,0.0106762,87975.0,87961.0,0.09077854]
[1767232281750,0.07058876,87977.0,87961.0,0.09077854]
[1767232281943,0.0106762,87976.0,87961.0,0.09077854]
[1767232282142,0.0106762,87975.0,87961.0,0.09077854]
[1767232282343,0.07058876,87977.0,87961.0,0.09077854]
[1767232282551,0.0106761,87976.0,87962.0,0.00909243]
[1767232282711,0.0106761,87975.0,87962.0,0.00909243]
[1767232282915,0.07058876,87977.0,87962.0,0.00909243]
[1767232283127,0.01067609,87976.0,87961.0,0.09077854]
[1767232283330,0.01067609,87975.0,87961.0,0.09077854]
[1767232283529,0.07058876,87977.0,87961.0,0.09077854]
[1767232283794,0.010676,87976.0,87961.0,0.09077854]
[1767232284017,0.010676,87975.0,87961.0,0.09077854]
[1767232284226,0.07058876,87977.0,87961.0,0.09987097]
[1767232284457,0.01067593,87976.0,87961.0,0.09987097]
[1767232284665,0.01067593,87975.0,87961.0,0.09987097]
[1767232284883,0.07058876,87977.0,87961.0,0.09987097]
[1767232285079,0.01067592,87976.0,87961.0,0.09987097]
[1767232285277,0.01067592,87975.0,87961.0,0.09987097]
[1767232285507,0.07058876,87977.0,87961.0,0.09987097]
[1767232285722,0.01067582,87976.0,87961.0,0.09987097]
[1767232285935,0.01067582,87975.0,87961.0,0.09987097]
[1767232286143,0.07058876,87977.0,87961.0,0.09987097]
[1767232286365,0.01067573,87976.0,87962.0,0.01000168]
[1767232286573,0.01067573,87975.0,87962.0,0.01000168]
[1767232286699,0.07058876,87977.0,87962.0,0.01000168]
[1767232286920,0.01067573,87976.0,87961.0,0.09077854]
[1767232287129,0.01067573,87975.0,87961.0,0.09077854]
[1767232287447,0.07058876,87977.0,87961.0,0.09077854]
[1767232287646,0.01067563,87976.0,87961.0,0.09077854]
[1767232287863,0.01067563,87975.0,87961.0,0.09077854]
[1767232288074,0.07058876,87977.0,87962.0,0.00909243]
[1767232288303,0.01067552,87976.0,87962.0,0.00909243]
[1767232288508,0.01067552,87975.0,87962.0,0.00909243]
[1767232288668,0.07058876,87977.0,87962.0,0.00909243]
[1767232288865,0.01067547,87976.0,87961.0,0.09077854]
[1767232289071,0.07058876,87977.0,87961.0,0.09077854]
[1767232289269,0.01067536,87976.0,87961.0,0.09077854]
[1767232289510,0.07058876,87977.0,87961.0,0.09077854]
[1767232289665,0.01067542,87976.0,87961.0,0.09077854]
[1767232289870,0.07058876,87977.0,87962.0,0.00909243]
[1767232290071,0.01067542,87976.0,87961.0,0.09077854]
[1767232290292,0.07058876,87977.0,87961.0,0.09077854]
[1767232290489,0.0114,87976.0,87961.0,0.09077854]
[1767232315375,0.0114,87975.0,87961.0,0.09077854]
[1767232315537,0.0114,87975.0,87963.0,0.07372738]
[1767232323324,0.0114,87974.0,87963.0,0.07372738]
[1767232324492,0.0114,87973.0,87963.0,0.07372738]
[1767232339038,0.01085,87973.0,87963.0,0.07372738]
[1767232356869,0.01085,87973.0,87963.0,0.06687589]
[1767232357069,0.01085,87973.0,87960.0,0.83560324]
[1767232357070,0.01085,87973.0,87961.0,0.06687589]
[1767232368990,0.00337312,87973.0,87964.0,0.06687589]
[1767232369357,0.01147227,87978.0,87964.0,0.06687589]
[1767232369692,0.02294454,87978.0,87964.0,0.06687589]
[1767232370181,0.02294454,87978.0,87960.0,0.84700324]
[1767232370387,0.02294454,87978.0,87961.0,0.06442388]
[1767232371695,0.0002,87979.0,87978.0,0.06497388]
[1767232371917,0.0114,87983.0,87979.0,0.06442388]
[1767232373714,0.03413309,87984.0,87979.0,0.06442388]
[1767232373916,0.0114,87989.0,87980.0,0.00644239]
[1767232376070,0.03412986,87992.0,87980.0,0.00644239]
[1767232376225,0.0114,87986.0,87980.0,0.00644239]
[1767232382583,0.03412986,87993.0,87981.0,0.06442388]
[1767232382781,0.0114,87994.0,87986.0,0.06497388]
[1767232382978,0.0114,87994.0,87982.0,0.12727779]
[1767232382979,0.0114,87994.0,87983.0,0.06442388]
[1767232383784,0.0114,87994.0,87983.0,0.06436705]
[1767232387494,0.0001458,87995.0,87983.0,0.06436705]
[1767232387696,0.0115458,87995.0,87983.0,0.06436705]
[1767232391845,0.0115458,87995.0,87983.0,0.06443932]
[1767232392139,0.01789201,88008.0,87984.0,0.06442388]
[1767232392140,0.01040194,87994.0,87984.0,0.06442388]
[1767232392296,0.00985194,87994.0,87984.0,0.06442388]
[1767232392499,0.0114,87997.0,87984.0,0.06442388]
[1767232393123,0.01040194,87997.0,87984.0,0.06442388]
[1767232395946,0.01040194,87998.0,87988.0,0.06442388]
[1767232396150,0.0114,88000.0,87988.0,0.06442388]
[1767232397033,0.0114,88000.0,87984.0,0.06442388]
[1767232397633,0.0114,88000.0,87986.0,0.06442388]
[1767232398199,0.0114,88000.0,87987.0,0.03412427]
[1767232398402,0.0114,88000.0,87988.0,0.06442388]
[1767232399225,0.05194292,88009.0,87988.0,0.06442388]
[1767232399226,0.0114,88004.0,87988.0,0.06442388]
[1767232399629,0.0114,88004.0,87988.0,0.0985473]
[1767232399825,0.0114,88004.0,87989.0,0.06442388]
[1767232400065,0.0114,88004.0,87991.0,0.06442388]
[1767232401149,0.03412342,88011.0,87991.0,0.06442388]
[1767232401371,0.0004,88012.0,87991.0,0.06442388]
[1767232401372,0.0114,88010.0,87991.0,0.06442388]
[1767232402596,0.0114,88010.0,87991.0,0.07582388]
[1767232402765,0.0114,88010.0,87992.0,0.06466457]
[1767232403097,0.0114,88010.0,87992.0,0.06460397]
[1767232404637,0.0004,88012.0,87985.0,0.0114]
[1767232404638,0.0114,88009.0,88001.0,0.06466457]
[1767232405135,0.0004,88012.0,88001.0,0.06466457]
[1767232405337,0.0004,88012.0,88002.0,0.00646646]
[1767232405893,0.01094771,88016.0,88002.0,0.00646646]
[1767232406131,0.0114,88018.0,88003.0,0.06466457]
[1767232406346,0.0004,88020.0,88002.0,0.00646646]
[1767232406347,0.0004,88020.0,88010.0,0.06466457]
[1767232406527,0.0114,88018.0,88010.0,0.06466457]
[1767232407184,0.0114,88018.0,88006.0,0.0114]
[1767232407185,0.00055,88010.0,88006.0,0.0114]
[1767232407588,0.0114,88018.0,88006.0,0.07606457]
[1767232408262,0.0114,88018.0,88006.0,0.06466457]
[1767232409268,0.0004,88020.0,88006.0,0.06466457]
[1767232409857,0.0001458,88030.0,88020.0,0.06466457]
[1767232410097,0.0001458,88030.0,88020.0,0.06319769]
[1767232410232,0.00035039,88020.0,88019.0,0.0114]
[1767232410732,0.0001458,88030.0,88019.0,0.0114]
[1767232410954,0.0001458,88030.0,88015.0,0.0045485]
[1767232411285,0.0001458,88030.0,88016.0,0.06466457]
[1767232412336,0.51225714,88030.0,88014.0,0.0114]
[1767232412558,0.51265883,88030.0,88014.0,0.0114]
[1767232412777,0.0114,88029.0,88012.0,0.02234771]
[1767232413086,0.0114,88029.0,88013.0,0.12727779]
[1767232418616,0.0114,88029.0,88013.0,0.19194236]
[1767232423421,0.0114,88029.0,88014.0,0.06466457]
[1767232425361,0.0061,88029.0,88014.0,0.06466457]
[1767232427518,0.0064532,88029.0,88014.0,0.06466457]
[1767232438083,0.0003532,88029.0,88014.0,0.06466457]
[1767232438386,0.0220693,88028.0,88014.0,0.05896607]
[1767232438534,0.0114,88028.0,88014.0,0.05896607]